bitfinex/quotes_SOLUSD_20241111
["timestamp","ask_amount","ask_price","bid_price","bid_amount"]
[1731348060693,6.5602,218.91,218.76,28.12687789]
[1731348060898,23.776884,218.9,218.74,28.12687789]
[1731348061095,23.776884,218.9,218.76,28.12687789]
[1731348062004,23.776884,218.9,218.74,28.12687789]
[1731348062304,23.776884,218.88,218.74,28.12687789]
[1731348063213,23.776884,218.88,218.65,2.16164173]
[1731348063214,23.776884,218.88,218.76,28.12687789]
[1731348063413,23.776884,218.88,218.74,28.12687789]
[1731348063918,23.776884,218.88,218.64,28.12687789]
[1731348063919,21.6215,218.89,218.78,28.12687789]
[1731348065210,21.6215,218.89,218.76,28.12687789]
[1731348065414,21.6215,218.89,218.85,28.12687789]
[1731348065613,21.6215,218.89,218.86,22.84625165]
[1731348065912,21.6215,218.89,218.88,28.12687789]
[1731348066093,21.6215,218.89,218.86,28.12687789]
[1731348066816,21.6215,218.89,218.84,28.12687789]
[1731348067600,21.6215,218.89,218.82,28.12687789]
[1731348069127,21.6215,218.89,218.79,28.12687789]
[1731348069328,21.6215,218.89,218.76,28.12687789]
[1731348069617,21.6215,218.89,218.78,28.12687789]
[1731348071525,23.776884,218.88,218.73,28.12687789]
[1731348071699,23.776884,218.85,218.63,17.88821676]
[1731348071905,0.1,218.84,218.66,28.12687789]
[1731348072608,23.776884,218.85,218.66,28.12687789]
[1731348072803,23.776884,218.85,218.64,28.12687789]
[1731348072804,23.776884,218.8,218.64,28.12687789]
[1731348072999,23.776884,218.78,218.64,28.12687789]
[1731348074820,6.1518,218.79,218.57,2.07866496]
[1731348074821,6.1518,218.79,218.66,28.12687789]
[1731348075523,23.776884,218.78,218.62,28.12687789]
[1731348076627,23.876884,218.78,218.6,28.12687789]
[1731348076800,23.776884,218.76,218.6,28.12687789]
[1731348077201,23.776884,218.74,218.6,28.12687789]
[1731348077613,23.776884,218.74,218.58,28.12687789]
[1731348077926,6.158,218.75,218.58,28.12687789]
[1731348077927,23.776884,218.72,218.58,28.12687789]
[1731348078829,23.776884,218.72,218.49,6.1863]
[1731348079022,16.6471,218.73,218.49,6.1863]
[1731348079023,23.776884,218.7,218.56,28.12687789]
[1731348079402,23.776884,218.7,218.49,6.1863]
[1731348079403,23.776884,218.7,218.58,28.12687789]
[1731348079610,23.776884,218.7,218.6,20.72681082]
[1731348079803,6.158,218.71,218.61,28.12687789]
[1731348080116,6.158,218.71,218.52,28.12687789]
[1731348080117,6.158,218.71,218.67,28.12687789]
[1731348080428,6.158,218.71,218.69,28.12687789]
[1731348080624,6.158,218.71,218.67,28.12687789]
[1731348080920,6.158,218.71,218.69,28.12687789]
[1731348082109,16.6471,218.7,218.69,28.12687789]
[1731348082309,16.6471,218.7,218.65,28.12687789]
[1731348082518,16.6471,218.7,218.63,28.12687789]
[1731348082828,22.2377,218.68,218.43,0.1]
[1731348083015,23.776884,218.67,218.53,28.12687789]
[1731348086257,23.776884,218.67,218.57,28.12687789]
[1731348087719,23.776884,218.62,218.46,2.0]
[1731348087912,23.776884,218.62,218.51,28.12687789]
[1731348088120,23.776884,218.62,218.46,2.0]
[1731348088316,23.876884,218.62,218.46,2.0]
[1731348088515,23.776884,218.58,218.46,2.0]
[1731348088827,23.776884,218.56,218.48,28.12687789]
[1731348089035,6.06424426,218.55,218.46,2.0]
[1731348089229,23.776884,218.54,218.52,28.12687789]
[1731348089432,23.776884,218.58,218.53,28.12687789]
[1731348089631,23.776884,218.58,218.55,28.12687789]
[1731348089928,29.60164317,218.58,218.52,28.12687789]
[1731348090340,29.60164317,218.58,218.46,2.0]
[1731348090341,35.31042128,218.58,218.51,28.12687789]
[1731348090833,35.31042128,218.58,218.46,2.0]
[1731348091135,35.31042128,218.58,218.54,28.12687789]
[1731348091136,23.776884,218.58,218.54,28.12687789]
[1731348091325,16.1817,218.59,218.46,2.0]
[1731348091518,16.1817,218.59,218.58,28.12687789]
[1731348091916,6.3537,218.6,218.58,28.12687789]
[1731348092120,16.3055,218.64,218.59,28.12687789]
[1731348092330,6.4567,218.66,218.63,56.25375578]
[1731348092537,6.4567,218.66,218.53,23.776884]
[1731348092538,32.2931,218.7,218.65,28.12687789]
[1731348092726,32.2931,218.7,218.64,28.12687789]
[1731348092727,32.2931,218.7,218.69,28.12687789]
[1731348092925,32.2931,218.7,218.6,28.12687789]
[1731348093128,32.2931,218.7,218.57,28.12687789]
[1731348093338,32.2931,218.7,218.58,28.12687789]
[1731348093541,32.2931,218.7,218.6,28.12687789]
[1731348093924,32.2931,218.7,218.59,28.12687789]
[1731348094119,32.2931,218.7,218.5,0.2]
[1731348094324,32.2931,218.7,218.65,28.12687789]
[1731348094631,32.2931,218.7,218.55,0.1]
[1731348094828,32.2931,218.7,218.66,28.12687789]
[1731348095033,32.2931,218.7,218.65,28.12687789]
[1731348095232,32.2931,218.7,218.66,28.12687789]
[1731348095434,32.2931,218.7,218.53,43.876884]
[1731348095638,32.2931,218.7,218.65,28.12687789]
[1731348095834,32.2931,218.7,218.53,43.876884]
[1731348096352,32.2931,218.7,218.65,28.12687789]
[1731348096523,32.2931,218.7,218.63,28.12687789]
[1731348096928,32.2931,218.7,218.55,0.1]
[1731348097130,16.6471,218.7,218.65,28.12687789]
[1731348097334,16.6471,218.7,218.57,20.1]
[1731348097555,16.6471,218.7,218.69,28.12687789]
[1731348097843,15.5095,218.75,218.61,0.1]
[1731348098041,16.6471,218.72,218.69,28.12687789]
[1731348098239,15.5095,218.75,218.69,28.12687789]
[1731348098424,16.6471,218.74,218.69,28.12687789]
[1731348099033,16.6471,218.74,218.61,0.1]
[1731348099433,16.6471,218.74,218.67,28.12687789]
[1731348099633,16.6471,218.74,218.69,28.12687789]
[1731348099828,16.6471,218.74,218.62,0.1]
[1731348100036,15.5095,218.75,218.69,28.12687789]
[1731348100244,15.5095,218.75,218.61,0.1]
[1731348100245,16.6471,218.75,218.61,0.1]
[1731348100460,16.6471,218.75,218.68,28.12687789]
[1731348101325,6.1217,218.76,218.65,23.776884]
[1731348101551,6.1217,218.76,218.71,28.12687789]
[1731348101730,16.6471,218.77,218.64,28.22687789]
[1731348101731,16.6471,218.77,218.73,28.12687789]
[1731348102257,16.6471,218.77,218.65,20.1]
[1731348102435,6.0726,218.81,218.73,28.12687789]
[1731348102630,16.6471,218.8,218.75,28.12687789]
[1731348102841,16.6471,218.8,218.67,16.2693]
[1731348103058,15.0085,218.85,218.67,16.2693]
[1731348103059,15.0085,218.85,218.78,28.12687789]
[1731348103358,16.6471,218.83,218.78,28.12687789]
[1731348103648,15.0085,218.85,218.72,28.12687789]
[1731348104057,16.6471,218.84,218.74,28.12687789]
[1731348104531,16.6471,218.84,218.68,23.776884]
[1731348104727,16.6471,218.84,218.71,28.12687789]
[1731348105036,16.6471,218.84,218.7,51.90376189]
[1731348105244,16.6471,218.84,218.7,28.12687789]
[1731348105445,16.6471,218.84,218.68,28.12687789]
[1731348105844,16.6471,218.84,218.65,0.1]
[1731348106038,23.776884,218.83,218.67,28.12687789]
[1731348106239,23.776884,218.83,218.62,16.0156]
[1731348106240,3.37289105,218.82,218.62,16.0156]
[1731348106446,23.776884,218.79,218.64,28.12687789]
[1731348106749,23.776884,218.79,218.63,28.12687789]
[1731348107140,23.776884,218.79,218.62,16.0156]
[1731348107354,23.776884,218.79,218.63,28.12687789]
[1731348107646,30.067084,218.77,218.53,6.6119]
[1731348107838,23.776884,218.75,218.58,28.12687789]
[1731348108034,23.776884,218.73,218.53,0.2]
[1731348108235,23.776884,218.73,218.61,28.12687789]
[1731348108851,3.37606346,218.72,218.59,28.12687789]
[1731348109058,23.776884,218.73,218.59,28.12687789]
[1731348109367,23.776884,218.71,218.59,28.12687789]
[1731348109556,6.2902,218.77,218.61,28.12687789]
[1731348109852,27.15379074,218.76,218.59,28.12687789]
[1731348110032,3.37690674,218.75,218.59,28.12687789]
[1731348110232,23.0201,218.73,218.57,28.12687789]
[1731348110428,27.15379074,218.72,218.57,28.12687789]
[1731348110653,3.37690674,218.71,218.57,28.12687789]
[1731348110955,3.37690674,218.7,218.57,28.12687789]
[1731348111536,3.37690674,218.69,218.59,28.12687789]
[1731348111732,3.37690674,218.68,218.59,28.12687789]
[1731348112043,23.0201,218.73,218.59,28.12687789]
[1731348112044,23.776884,218.71,218.59,28.12687789]
[1731348112248,3.38060308,218.7,218.59,28.12687789]
[1731348112463,3.38060308,218.69,218.59,28.12687789]
[1731348112635,3.38060308,218.68,218.59,28.12687789]
[1731348112945,23.776884,218.71,218.59,28.12687789]
[1731348113256,3.38269208,218.7,218.51,16.2933]
[1731348113448,33.53007608,218.69,218.54,28.12687789]
[1731348113648,3.38269208,218.68,218.56,28.12687789]
[1731348113952,23.776884,218.67,218.56,28.12687789]
[1731348114145,3.38269208,218.66,218.6,28.12687789]
[1731348114756,3.38269208,218.66,218.58,28.12687789]
[1731348116043,3.38269208,218.66,218.6,28.12687789]
[1731348116339,3.38269208,218.65,218.6,28.12687789]
[1731348116551,3.38269208,218.68,218.53,23.776884]
[1731348116748,3.39146754,218.67,218.58,28.12687789]
[1731348116949,3.39146754,218.66,218.58,28.12687789]
[1731348117146,23.776884,218.68,218.6,28.12687789]
[1731348117147,3.39146754,218.65,218.6,28.12687789]
[1731348117348,23.776884,218.68,218.6,28.12687789]
[1731348117349,3.39146754,218.64,218.6,28.12687789]
[1731348117534,3.39146754,218.63,218.6,28.12687789]
[1731348117739,23.776884,218.68,218.6,28.12687789]
[1731348117935,3.39249758,218.67,218.6,28.12687789]
[1731348118240,3.39249758,218.66,218.6,28.12687789]
[1731348118445,15.7162,218.64,218.56,28.12687789]
[1731348118646,3.39249758,218.63,218.56,28.12687789]
[1731348119561,15.7162,218.61,218.46,2.0]
[1731348119761,22.3811,218.55,218.46,30.12687789]
[1731348119951,3.39249758,218.54,218.48,28.12687789]
[1731348120264,22.3811,218.55,218.48,28.12687789]
[1731348120644,3.39431573,218.54,218.48,28.12687789]
[1731348120956,22.3811,218.55,218.46,2.0]
[1731348120957,22.3811,218.55,218.46,30.12687789]
[1731348121163,3.39432566,218.54,218.46,30.12687789]
[1731348121460,3.3943509,218.53,218.46,30.12687789]
[1731348121647,37.795969,218.53,218.46,30.12687789]
[1731348121845,3.39360508,218.52,218.46,30.12687789]
[1731348122058,6.2580925,218.52,218.46,30.12687789]
[1731348122557,6.2580925,218.52,218.46,2.0]
[1731348122765,7.7609925,218.51,218.46,2.0]
[1731348123343,6.2580925,218.52,218.46,2.0]
[1731348123553,6.2580925,218.52,218.46,30.12687789]
[1731348123755,13.42831445,218.52,218.46,2.0]
[1731348123954,3.38776401,218.51,218.46,2.0]
[1731348124149,13.42831445,218.52,218.46,2.0]
[1731348124368,3.38682332,218.51,218.46,30.12687789]
[1731348124560,13.42831445,218.52,218.46,30.12687789]
[1731348126756,13.42831445,218.52,218.47,28.12687789]
[1731348126963,13.42831445,218.52,218.46,2.0]
[1731348127267,13.42831445,218.52,218.47,28.12687789]
[1731348127464,13.42831445,218.52,218.46,2.0]
[1731348127758,13.42831445,218.52,218.47,28.12687789]
[1731348128154,13.42831445,218.52,218.46,2.0]
[1731348128360,13.42831445,218.52,218.47,28.12687789]
[1731348129043,7.00935465,218.51,218.47,28.12687789]
[1731348130748,7.00935465,218.51,218.46,30.12687789]
[1731348133452,7.00935465,218.51,218.47,28.12687789]
[1731348133776,7.00935465,218.51,218.46,30.12687789]
[1731348134272,22.3811,218.55,218.5,28.12687789]
[1731348134451,22.3811,218.55,218.54,28.12687789]
[1731348134774,22.3811,218.55,218.53,28.12687789]
[1731348135066,22.3811,218.55,218.5,28.12687789]
[1731348135270,22.3811,218.55,218.48,28.12687789]
[1731348135865,28.20382483,218.55,218.48,28.12687789]
[1731348136458,22.3811,218.55,218.48,28.12687789]
[1731348136654,22.3811,218.55,218.5,28.12687789]
[1731348137170,22.3811,218.55,218.48,28.12687789]
[1731348138067,30.11449976,218.54,218.46,2.0]
[1731348138479,6.08272483,218.53,218.46,2.0]
[1731348138769,30.11449976,218.54,218.46,2.0]
[1731348139354,6.33761576,218.54,218.48,28.12687789]
[1731348139572,6.33761576,218.54,218.5,28.12687789]
[1731348140258,6.33761576,218.54,218.46,2.0]
[1731348140259,22.3811,218.55,218.52,28.12687789]
[1731348141155,22.3811,218.55,218.54,28.12687789]
[1731348142249,22.3811,218.55,218.52,28.12687789]
[1731348142458,22.3811,218.55,218.5,28.12687789]
[1731348142674,22.3811,218.55,218.52,28.12687789]
[1731348142868,22.3811,218.55,218.53,28.12687789]
[1731348143457,22.3811,218.55,218.46,2.0]
[1731348143458,22.3811,218.55,218.54,28.12687789]
[1731348143869,22.3811,218.55,218.53,28.12687789]
[1731348144454,22.3811,218.55,218.51,28.12687789]
[1731348144661,22.3811,218.55,218.46,2.0]
[1731348144864,22.3811,218.55,218.48,28.12687789]
[1731348145771,22.3811,218.55,218.46,2.0]
[1731348145772,22.3811,218.55,218.49,28.12687789]
[1731348146370,22.3811,218.55,218.46,2.0]
[1731348146559,22.3811,218.55,218.49,28.12687789]
[1731348147262,22.3811,218.55,218.51,28.12687789]
[1731348148366,22.3811,218.55,218.49,28.12687789]
[1731348149268,22.3811,218.55,218.51,28.12687789]
[1731348150085,22.3811,218.55,218.5,28.12687789]
[1731348150283,3.39483385,218.54,218.5,28.12687789]
[1731348150580,22.3811,218.55,218.5,28.12687789]
[1731348150786,3.39512807,218.54,218.5,28.12687789]
[1731348151076,22.3811,218.55,218.51,28.12687789]
[1731348151266,3.39803158,218.54,218.52,28.12687789]
[1731348151466,22.3811,218.55,218.51,28.12687789]
[1731348151660,3.3982655,218.54,218.51,28.12687789]
[1731348151877,22.3811,218.55,218.51,28.12687789]
[1731348152066,3.3982655,218.54,218.51,28.12687789]
[1731348152363,3.3982655,218.53,218.5,28.12687789]
[1731348152574,22.3811,218.55,218.5,28.12687789]
[1731348152776,3.4012774,218.54,218.51,28.12687789]
[1731348152987,3.4012774,218.53,218.51,28.12687789]
[1731348153180,22.3811,218.55,218.5,28.12687789]
[1731348153479,22.3811,218.55,218.49,28.12687789]
[1731348153480,3.40297527,218.54,218.49,28.12687789]
[1731348153677,3.40298215,218.53,218.5,28.12687789]
[1731348153885,3.40298215,218.52,218.5,28.12687789]
[1731348154064,22.3811,218.55,218.5,28.12687789]
[1731348154265,3.40401744,218.54,218.5,28.12687789]
[1731348154468,3.40401744,218.53,218.51,28.12687789]
[1731348154682,3.40401744,218.52,218.51,28.12687789]
[1731348155185,3.40401744,218.54,218.51,28.12687789]
[1731348155484,3.40401744,218.53,218.52,28.12687789]
[1731348155677,3.40401744,218.53,218.51,28.12687789]
[1731348155872,3.40401744,218.52,218.51,28.12687789]
[1731348156066,3.40401744,218.54,218.51,28.12687789]
[1731348156263,3.40401744,218.53,218.51,28.12687789]
[1731348156571,3.40401744,218.52,218.51,28.12687789]
[1731348156780,3.40401744,218.54,218.51,28.12687789]
[1731348156963,3.40401744,218.53,218.47,28.12687789]
[1731348157162,3.40401744,218.54,218.46,2.0]
[1731348157363,3.40401744,218.53,218.46,2.0]
[1731348157567,3.40401744,218.52,218.46,2.0]
[1731348157768,3.40401744,218.51,218.46,2.0]
[1731348157971,8.98255893,218.54,218.46,2.0]
[1731348158293,3.40401744,218.53,218.46,2.0]
[1731348158462,19.04531744,218.52,218.46,2.0]
[1731348158668,3.40401744,218.51,218.46,2.0]
[1731348158977,3.40401744,218.5,218.46,2.0]
[1731348159168,15.6413,218.52,218.46,2.0]
[1731348159169,3.40401744,218.49,218.46,2.0]
[1731348159483,3.40401744,218.48,218.46,2.0]
[1731348159685,3.40401744,218.47,218.46,2.0]
[1731348160071,3.40401744,218.51,218.46,2.0]
[1731348160266,6.3412,218.49,218.46,2.0]
[1731348160482,3.40401744,218.48,218.46,2.0]
[1731348161983,3.40401744,218.47,218.46,2.0]
[1731348162379,32.9164311,218.47,218.46,2.0]
[1731348162695,39.46747681,218.47,218.46,2.0]
[1731348163368,6.5196,218.41,218.28,28.12687789]
[1731348163567,23.876884,218.42,218.22,28.12687789]
[1731348163568,6.5196,218.37,218.22,28.12687789]
[1731348163788,32.63424327,218.36,218.22,28.12687789]
[1731348163982,23.776884,218.34,218.22,28.12687789]
[1731348164190,23.776884,218.32,218.2,28.12687789]
[1731348164394,0.1,218.36,218.04,153.62687789]
[1731348164395,23.776884,218.27,218.13,28.12687789]
[1731348164579,23.776884,218.25,218.12,28.12687789]
[1731348164891,8.85735927,218.24,218.14,28.12687789]
[1731348165068,8.85735927,218.24,218.08,0.1]
[1731348165069,3.40401744,218.23,218.13,28.12687789]
[1731348165271,27.18090144,218.22,218.08,0.1]
[1731348165486,23.776884,218.2,218.09,28.12687789]
[1731348165669,18.59266059,218.19,218.07,28.12687789]
[1731348165882,3.39241676,218.18,218.07,28.12687789]
[1731348166773,3.39241676,218.18,218.08,28.12687789]
[1731348167394,3.38147002,218.17,218.12,28.12687789]
[1731348167687,15.8057,218.28,218.16,28.12687789]
[1731348167891,3.37462369,218.27,218.23,28.12687789]
[1731348168091,15.9621,218.35,218.24,28.12687789]
[1731348168281,3.37557941,218.28,218.24,28.12687789]
[1731348168481,4.87556405,218.3,218.17,28.12687789]
[1731348168807,15.9621,218.35,218.19,28.12687789]
[1731348168988,3.37327352,218.28,218.19,28.12687789]
[1731348169192,15.9621,218.35,218.19,28.12687789]
[1731348169996,15.9621,218.35,218.22,28.12687789]
[1731348170382,15.9621,218.35,218.09,0.1]
[1731348170584,6.6283,218.2,218.06,28.12687789]
[1731348170781,6.6283,218.2,218.15,28.12687789]
[1731348171395,23.776884,218.19,218.13,28.12687789]
[1731348171779,23.776884,218.19,218.09,28.12687789]
[1731348173596,23.776884,218.19,218.11,28.12687789]
[1731348173793,23.776884,218.19,218.09,28.12687789]
[1731348174297,23.776884,218.19,218.13,28.12687789]
[1731348174591,23.776884,218.19,218.11,28.12687789]
[1731348174793,23.776884,218.19,218.04,28.12687789]
[1731348174794,23.776884,218.19,218.09,28.12687789]
[1731348175305,23.776884,218.17,218.09,28.12687789]
[1731348175793,23.776884,218.17,218.07,28.12687789]
[1731348177199,23.776884,218.17,218.09,28.12687789]
[1731348177880,18.328636,218.18,218.09,28.12687789]
[1731348178299,18.328636,218.18,218.11,28.12687789]
[1731348178473,6.6283,218.2,218.13,28.12687789]
[1731348178677,24.955532,218.2,218.11,28.12687789]
[1731348179176,24.955532,218.2,218.15,28.12687789]
[1731348179376,6.6283,218.2,218.03,0.1]
[1731348179576,24.954914,218.2,218.12,28.12687789]
[1731348179884,6.6283,218.2,218.12,28.12687789]
[1731348180478,6.6283,218.2,218.14,28.12687789]
[1731348180892,6.1965,218.26,218.18,28.12687789]
[1731348181094,22.1349,218.38,218.2,28.12687789]
[1731348181397,22.1349,218.38,218.06,23.776884]
[1731348181398,18.319113,218.29,218.16,28.12687789]
[1731348181603,18.319113,218.29,218.14,28.12687789]
[1731348181778,6.4754,218.28,218.12,28.12687789]
[1731348182175,21.893363,218.27,218.1,28.12687789]
[1731348182395,21.893363,218.27,218.12,28.12687789]
[1731348182580,23.776884,218.26,218.12,28.12687789]
[1731348182793,23.776884,218.26,218.1,28.12687789]
[1731348182993,23.776884,218.24,218.1,28.12687789]
[1731348183184,23.776884,218.24,218.05,0.8]
[1731348183185,23.776884,218.24,218.06,28.12687789]
[1731348183382,6.333863,218.23,218.06,28.12687789]
[1731348183701,23.776884,218.22,218.06,28.12687789]
[1731348183896,23.776884,218.2,218.05,0.8]
[1731348184106,30.010747,218.2,218.05,0.8]
[1731348184486,23.776884,218.2,218.06,28.12687789]
[1731348185386,23.776884,218.2,218.05,0.8]
[1731348185596,23.776884,218.18,218.05,28.92687789]
[1731348185797,23.776884,218.18,218.05,0.8]
[1731348186100,15.9427,218.17,218.05,0.8]
[1731348186320,23.776884,218.16,218.05,0.8]
[1731348186498,0.1,218.15,218.05,0.8]
[1731348186883,23.876884,218.16,218.05,0.8]
[1731348187285,6.238,218.11,218.05,0.8]
[1731348187485,23.776884,218.1,218.05,0.8]
[1731348188307,23.876884,218.1,218.05,0.8]
[1731348188491,29.29411472,218.1,218.05,0.8]
[1731348188692,23.776884,218.08,218.05,0.8]
[1731348189212,35.49794772,218.08,218.05,0.8]
[1731348189513,23.776884,218.06,218.01,0.6876783]
[1731348189803,23.876884,218.03,218.0,13.86404844]
[1731348190006,23.876884,218.03,217.85,28.12687789]
[1731348190200,23.876884,218.03,217.86,28.12687789]
[1731348190405,15.0129,218.02,217.85,28.12687789]
[1731348190605,23.776884,218.01,217.84,28.12687789]
[1731348190804,6.5322,218.04,217.96,28.12687789]
[1731348190993,6.5322,218.04,217.94,28.12687789]
[1731348191510,6.5322,218.04,217.92,28.12687789]
[1731348191688,6.5322,218.04,217.9,28.12687789]
[1731348192200,6.5322,218.04,217.88,28.12687789]
[1731348192405,23.776884,218.03,217.88,28.12687789]
[1731348192709,23.776884,218.03,217.9,28.12687789]
[1731348193303,16.3328,218.02,217.86,28.12687789]
[1731348193514,23.776884,218.01,217.9,27.98922801]
[1731348193819,23.776884,218.01,217.92,28.12687789]
[1731348193995,6.5322,218.04,217.96,28.12687789]
[1731348195005,6.5322,218.04,217.9,28.12687789]
[1731348195230,6.5322,218.04,217.86,28.12687789]
[1731348195542,19.28328257,218.04,217.86,28.12687789]
[1731348195826,19.28328257,218.04,217.88,28.12687789]
[1731348196237,0.1,218.02,217.79,15.9736]
[1731348196540,23.776884,218.0,217.84,28.12687789]
[1731348196829,23.776884,218.0,217.86,28.12687789]
[1731348197035,23.776884,218.0,217.79,15.9736]
[1731348197036,23.776884,217.98,217.79,15.9736]
[1731348197210,23.776884,217.98,217.85,28.12687789]
[1731348197409,23.776884,217.98,217.87,28.12687789]
[1731348197814,22.2784,217.99,217.87,28.12687789]
[1731348198017,22.2784,217.99,217.91,28.12687789]
[1731348199529,22.2784,217.99,217.81,0.1]
[1731348199742,22.2784,217.99,217.9,28.12687789]
[1731348200823,22.32692072,217.98,217.9,28.12687789]
[1731348201524,22.2784,217.99,217.92,28.12687789]
[1731348201705,6.0015,217.99,217.92,28.12687789]
[1731348201909,6.0015,217.99,217.91,28.12687789]
[1731348202335,6.0015,217.99,217.83,0.1]
[1731348202507,6.0015,217.99,217.79,15.9736]
[1731348202508,6.0015,217.99,217.85,28.12687789]
[1731348202909,23.776884,217.98,217.85,28.12687789]
[1731348205317,23.776884,217.98,217.87,28.12687789]
[1731348205633,42.126282,217.98,217.87,28.12687789]
[1731348206210,42.126282,217.98,217.84,28.12687789]
[1731348206607,6.3738,218.04,217.93,28.12687789]
[1731348206921,6.3738,218.04,217.91,28.12687789]
[1731348207120,6.3738,218.04,217.89,28.12687789]
[1731348208220,6.3738,218.04,217.94,28.12687789]
[1731348208626,6.3738,218.04,217.98,28.12687789]
[1731348208826,6.3738,218.04,217.94,28.12687789]
[1731348209031,6.3738,218.04,217.9,28.12687789]
[1731348209529,23.776884,218.03,217.9,28.12687789]
[1731348210036,23.776884,218.03,217.88,28.12687789]
[1731348210249,29.62367118,218.03,217.88,28.12687789]
[1731348210543,5.84678718,218.02,217.88,28.12687789]
[1731348210738,23.776884,218.01,217.88,28.12687789]
[1731348211041,23.776884,218.0,217.88,28.12687789]
[1731348211217,29.62367118,218.0,217.86,28.12687789]
[1731348211917,29.62367118,218.0,217.84,28.12687789]
[1731348212133,23.776884,218.0,217.86,28.12687789]
[1731348212524,6.2027,217.99,217.86,28.12687789]
[1731348212827,23.776884,217.98,217.86,28.12687789]
[1731348213421,23.776884,217.98,217.82,28.12687789]
[1731348213422,23.776884,217.96,217.82,28.12687789]
[1731348213819,29.62367118,217.96,217.82,28.12687789]
[1731348214237,0.1,217.93,217.76,28.12687789]
[1731348214542,0.1,217.93,217.7,15.0576]
[1731348214543,23.776884,217.91,217.74,28.12687789]
[1731348214746,29.88367118,217.91,217.74,28.12687789]
[1731348215045,15.1372,217.88,217.74,28.12687789]
[1731348215226,21.24398718,217.88,217.74,28.12687789]
[1731348215426,6.10678718,217.87,217.74,28.12687789]
[1731348216331,6.0477,217.86,217.72,28.12687789]
[1731348216641,6.0477,217.86,217.64,15.8171]
[1731348216642,23.776884,217.85,217.73,28.12687789]
[1731348217242,23.776884,217.85,217.71,28.12687789]
[1731348217424,23.776884,217.85,217.71,27.62687789]
[1731348218947,23.776884,217.85,217.71,28.12687789]
[1731348219330,23.776884,217.85,217.69,28.12687789]
[1731348219640,23.776884,217.83,217.69,28.12687789]
[1731348220047,23.776884,217.83,217.58,16.46871802]
[1731348220048,23.776884,217.83,217.68,28.12687789]
[1731348220342,23.776884,217.83,217.58,16.56871802]
[1731348220343,23.776884,217.83,217.7,28.12687789]
[1731348220925,23.776884,217.83,217.67,28.40843064]
[1731348221245,6.6654,217.84,217.73,28.40843064]
[1731348221746,6.6654,217.84,217.72,28.40843064]
[1731348222931,6.6654,217.84,217.73,28.40843064]
[1731348223830,6.6654,217.84,217.74,28.40843064]
[1731348224143,6.6654,217.84,217.73,28.40843064]
[1731348224349,6.6654,217.84,217.72,28.40843064]
[1731348224531,6.6654,217.84,217.73,28.40843064]
[1731348225626,6.6654,217.84,217.77,28.40843064]
[1731348226033,6.6654,217.84,217.78,28.40843064]
[1731348226357,6.6654,217.84,217.77,28.40843064]
[1731348226724,6.6654,217.84,217.78,28.40843064]
[1731348227840,6.6654,217.84,217.77,28.40843064]
[1731348228223,6.6654,217.84,217.75,28.40843064]
[1731348228426,6.6654,217.84,217.74,28.40843064]
[1731348229128,6.7369372,217.92,217.77,28.40843064]
[1731348229338,6.1347,217.94,217.69,21.8396]
[1731348229339,6.1347,217.94,217.8,28.40843064]
[1731348229547,6.1347,217.94,217.79,28.40843064]
[1731348229862,6.1347,217.94,217.78,28.40843064]
[1731348230045,0.24121934,217.79,217.78,28.40843064]
[1731348231331,0.24121934,217.79,217.78,56.81686128]
[1731348231537,0.24121934,217.79,217.78,56.91686128]
[1731348231828,0.24121934,217.79,217.78,56.81686128]
[1731348232032,0.24121934,217.79,217.78,28.40843064]
[1731348232745,0.24121934,217.79,217.75,28.40843064]
[1731348232947,0.24121934,217.79,217.77,28.40843064]
[1731348234538,0.24121934,217.79,217.78,28.40843064]
[1731348234743,0.24121934,217.79,217.77,28.50843064]
[1731348234939,0.24121934,217.79,217.78,28.40843064]
[1731348235241,0.24121934,217.79,217.77,28.40843064]
[1731348235650,6.1347,217.94,217.77,28.40843064]
[1731348235853,6.1347,217.94,217.84,28.40843064]
[1731348236064,6.1347,217.94,217.73,2.15240134]
[1731348236244,6.1347,217.94,217.81,28.40843064]
[1731348236436,6.1347,217.94,217.83,28.40843064]
[1731348237851,6.1347,217.94,217.73,23.876884]
[1731348238157,6.1347,217.94,217.79,28.40843064]
[1731348238752,6.1347,217.94,217.81,28.40843064]